Cogmind - Beta 16 @@@ ROGUE MODE // 2026.01.11 @ 12:38:45 Player: Lunishko Result: Destroyed by X-62 Marksman with Pulse Rifle Performance ------------- Evolutions (2) 1000 Regions Visited (5) 1000 Robots Destroyed (14) 70 Value Destroyed (420) 420 Prototype IDs (24) 480 Alien Tech Used (0) 0 Bonus (300) 300 TOTAL SCORE: 3270 Bonus ------- Aligned with FarCom 300 Cogmind --------- Core Integrity 0/550 Matter 8/300 Energy 100/100 System Corruption 12% Temperature Cool (9) Movement Core (150) Ox2 Location -8/Materials Parts ------- > --- POWER (2) -------- (None) > --- PROPULSION (3) --- (None) > --- UTILITY (4) ------ Improved Signal Interpreter > --- WEAPON (2) ------- Improved EM Pulse Cannon Mini Grenade Launcher > --- INVENTORY (5) ---- Hacking Suite Minigun Heavy Assault Cannon Heavy Flail Peak State ------------ > --- POWER ------------ Ion Engine Nuclear Core > --- PROPULSION ------- Medium Treads Medium Treads Medium Treads > --- UTILITY ---------- Large Storage Unit Advanced Weight Redist. System Visual Processing Unit Cloak of Protection > --- WEAPON ----------- Minigun Heavy Flail > --- INVENTORY -------- Advanced Treads Medium Treads Improved Sensor Array Improved Signal Interpreter System Shield Lightning Gun Lightning Gun Improved EM Pulse Cannon Improved EM Pulse Cannon Heavy Assault Cannon EMP Blaster EMP Blaster Grenade Launcher Mini Grenade Launcher [Rating: 40] Favorites ----------- Power Ion Engine Engine Ion Engine Power Core Nuclear Core Propulsion Medium Treads Treads Medium Treads Wheel Wheel Utility Cloak of Protection Device Cloak of Protection Storage High-capacity Storage Unit Processor Visual Processing Unit Weapon Minigun Energy Gun Improved Medium Laser Energy Cannon Improved EM Pulse Cannon Ballistic Gun Minigun Launcher Mini Grenade Launcher Special Weapon Mining Laser Impact Weapon Heavy Flail Build | -11 -10 -10 -10 -9 -8 ------- Run | Yrd Mat Min Exi Min Mat Slots Evolved 4 | . . . . . 4 Power 1 | . . . . . 1 Propulsion 1 | . . . . . 1 Utility 2 | . . . . . 2 Weapon . | . . . . . . Parts Attached 35 | 6 1 . 4 3 21 Power 4 | 1 . . 1 . 2 Engine 3 | 1 . . 1 . 1 Core 1 | . . . . . 1 Reactor . | . . . . . . Propulsion 8 | 2 . . . 1 5 Treads 7 | 2 . . . . 5 Leg . | . . . . . . Wheel 1 | . . . . 1 . Hover . | . . . . . . Flight . | . . . . . . Utility 11 | 1 1 . 3 1 5 Device 3 | . . . 1 . 2 Storage 5 | 1 . . 2 . 2 Processor 3 | . 1 . . 1 1 Hackware . | . . . . . . Protection . | . . . . . . Artifact . | . . . . . . Weapon 12 | 2 . . . 1 9 Energy Gun 1 | . . . . . 1 Energy Cannon 1 | . . . . . 1 Ballistic Gun 4 | 2 . . . . 2 Ballistic Cannon . | . . . . . . Launcher 4 | . . . . 1 3 Special Weapon 1 | . . . . . 1 Impact Weapon 1 | . . . . . 1 Slashing Weapon . | . . . . . . Piercing Weapon . | . . . . . . Special Melee Weapon . | . . . . . . Unidentified Prototypes 1 | . . . . . 1 Parts Lost 19 | . . 5 . . 14 Power 4 | . . 1 . . 3 Propulsion 6 | . . 2 . . 4 Utility 4 | . . . . . 4 Weapon 5 | . . 2 . . 3 Highest Loss Streak 5 | . . 5 . . 5 To Critical Strikes . | . . . . . . Average Backups 7 | . 1 3 3 4 11 Power . | . 1 1 . . . Propulsion . | . . . . . 1 Utility 1 | . . . . 1 2 Weapon 4 | . . 2 2 2 7 Tool/Special . | . . . . . . Unused Backups 8 | . . . . 1 7 Power . | . . . . . . Propulsion . | . . . . . . Utility 2 | . . . . . 2 Weapon 6 | . . . . 1 5 Tool/Special . | . . . . . . Average Slot Usage (%) 57 | . 91 67 33 33 68 Engine 6 | . 14 10 8 4 4 Core 2 | . . . . . 4 Treads 14 | . 28 17 . . 23 Wheel 1 | . . . . 5 . Device 10 | . . . 12 13 11 Storage 5 | . 14 10 2 . 8 Processor 7 | . 6 14 10 9 5 Ballistic Gun 4 | . 28 14 . . 4 Special Weapon 1 | . . . . . 2 Impact Weapon 1 | . . . . . 2 Peak Build Rating 40 | 6 7 7 10 12 40 Average Rating 18 | 4 6 4 8 9 28 On Entrance 5 | . 6 7 1 9 11 Avg Prop Armor Cover (%) 7 | . . . . . 7 Naked Turns . | . . . . . . Heaviest Build 57 | 13 13 13 23 13 57 Greatest Support 93 | 40 40 40 3 10 93 Greatest Overweight (x) 7 | . . 3 7 4 2 Average Overweight (x) . | . . . 2 1 . Largest Inventory Capacity 20 | 8 8 8 10 5 20 Average Capacity 11 | 6 8 7 5 5 16 Most Carried 17 | 1 3 3 5 5 17 Average Carried 7 | . 1 3 3 4 12 Final Capacity 8 | 8 8 5 5 5 5 Final Carried 5 | 1 3 3 4 4 5 Class Distribution -------------------- 95% | Mutant Dominant Class ---------------- Mutant | -10/Materials Mutant | -10/Mines Mutant | -10/Exiles Mutant | -9/Mines Mutant | -8/Materials Resources | -11 -10 -10 -10 -9 -8 ----------- Run | Yrd Mat Min Exi Min Mat Matter Collected 657 | 182 100 . . 129 246 Remotely . | . . . . . . Salvage Created 440 | . 100 . . . 340 Parts 17 | . 3 . . . 14 Haulers Intercepted . | . . . . . . Recyclers Shooed 2 | . 1 . . . 1 Parts Field Recycled . | . . . . . . Retrieved Matter . | . . . . . . Parts Self-Destructed . | . . . . . . Prevented . | . . . . . . Parts Restored . | . . . . . . Kills | -11 -10 -10 -10 -9 -8 ------- Run | Yrd Mat Min Exi Min Mat Combat Hostiles Destroyed 10 | . 1 . . . 9 Melee 3 | . . . . . 3 Guns 3 | . 1 . . . 2 AOE 4 | . . . . . 4 Classes Destroyed 6 | . 2 . . . 4 Recycler 2 | . 1 . . . 1 Operator 1 | . . . . . 1 Watcher 1 | . . . . . 1 Swarmer 4 | . . . . . 4 Grunt 5 | . 1 . . . 4 Sentry 1 | . . . . . 1 Best Kill Streak 4 | . 2 . . . 4 Combat Bots Only 3 | . 1 . . . 3 Max Kills in Single Turn 3 | . 1 . . . 3 Gunslinging . | . . . . . . Exploded 3 | . . . . . 3 Melee 1 | . . . . . 1 Uniques/NPCs Destroyed . | . . . . . . Combat | -11 -10 -10 -10 -9 -8 -------- Run | Yrd Mat Min Exi Min Mat Hostile Shots Fired 221 | . 34 23 . 4 160 Missed 58 | . 15 6 . 2 35 Hits 163 | . 19 17 . 2 125 Projectile 163 | . 19 17 . 2 125 AOE 13 | . . 13 . . . Critical Strikes 8 | . . . . . 8 Damage Taken 3383 | . 254 554 . 28 2547 Core 777 | . 32 179 . . 566 Absorbed by Shields . | . . . . . . Core Remaining (%) 57 | 100 . . . 15 . Volleys Fired 63 | . 21 . . . 42 Largest 2 | . 2 . . . 2 Hottest 100 | . 40 . . . 100 Shots Fired 99 | . 42 . . . 57 Gun 74 | . 42 . . . 32 Cannon . | . . . . . . Launcher 8 | . . . . . 8 Special 17 | . . . . . 17 Kinetic 74 | . 42 . . . 32 Thermal 17 | . . . . . 17 Explosive 8 | . . . . . 8 Electromagnetic . | . . . . . . Robot Hit Streak 17 | . 12 . . . 17 Robot Miss Streak 4 | . 4 . . . 3 Penetration Max . | . . . . . . Secondary Targets 1 | . . . . . 1 Max Gunslinging Chain 1 | . . . . . 1 Shots Hit Robots 71 | . 31 . . . 40 Core Hits 28 | . 8 . . 1 19 Critical Kills 1 | . . . . . 1 Critical Parts Destroyed 1 | . . . . . 1 Critical Strikes 2 | . . . . . 2 Smash 2 | . . . . . 2 Melee Attacks 32 | . . . . . 32 Impact 32 | . . . . . 32 Slashing . | . . . . . . Piercing . | . . . . . . Sneak Attacks . | . . . . . . Combat Hostiles . | . . . . . . Follow-up Attacks . | . . . . . . Damage Inflicted 1890 | . 328 . . 7 1555 Guns 707 | . 328 . . . 379 Cannons . | . . . . . . Explosions 602 | . . . . . 602 Melee 548 | . . . . . 548 Ramming 33 | . . . . 7 26 Kinetic 707 | . 328 . . . 379 Thermal . | . . . . . . Explosive 602 | . . . . . 602 Electromagnetic . | . . . . . . Impact 548 | . . . . . 548 Slashing . | . . . . . . Piercing . | . . . . . . Highest Corruption 12 | . . . . . 12 Average Corruption 12 | . . . . . 12 Corruption Purged . | . . . . . . Corruption Blocked . | . . . . . . Effects 35 | . . . . . 35 Message Errors 8 | . . . . . 8 Matter Fused 10 | . . . . . 10 Heat Flow Errors 5 | . . . . . 5 Energy Discharges 5 | . . . . . 5 Parts Rejected 1 | . . . . . 1 Data Loss (minor) 2 | . . . . . 2 Data Loss (major) 1 | . . . . . 1 Misfires 2 | . . . . . 2 Alerts 1 | . . . . . 1 Overload Shots . | . . . . . . Overflow Damage 83 | . . . . . 83 Projectiles . | . . . . . . Explosions 1 | . . . . . 1 Melee 82 | . . . . . 82 Knockbacks . | . . . . . . Impact . | . . . . . . Kinetic . | . . . . . . Secondary . | . . . . . . Self-Inflicted Damage 145 | . . . . 3 142 Shots 4 | . . . . . 4 Rammed 8 | . . . . 2 6 Targets Rammed 9 | . . . . 2 7 Kicked . | . . . . . . Crushed 1 | . . . . . 1 Highest Temperature 205 | . 15 . . . 205 Average Temperature 35 | . 7 . . . 42 Received Heat Transfer 861 | . 144 . . 15 702 Siege Activations . | . . . . . . Martial Activations . | . . . . . . Shielding Activations . | . . . . . . Robots Disrupted . | . . . . . . Combat Hostiles . | . . . . . . Robots Corrupted . | . . . . . . Combat Hostiles . | . . . . . . Parts Fried . | . . . . . . Impact Corruptions 3 | . . . . . 3 Robots Melted . | . . . . . . Combat Hostiles . | . . . . . . Parts Melted . | . . . . . . Heat Transferred . | . . . . . . Parts Sabotaged . | . . . . . . Parts Stolen . | . . . . . . Parts Stripped . | . . . . . . Power Chain Reactions . | . . . . . . Alert | -11 -10 -10 -10 -9 -8 ------- Run | Yrd Mat Min Exi Min Mat Maximum Alert Level 1 | . . . . . 1 Low Security (%) 98 | 100 100 100 . 100 97 Level 1 1 | . . . . . 2 Level 2 . | . . . . . . Level 3 . | . . . . . . Level 4 . | . . . . . . Level 5 . | . . . . . . High Security . | . . . . . . Max Security . | . . . . . . Peak Influence 245 | . 20 . . 30 245 Initial . | . . . . . . Average 29 | . 1 . . 1 43 Influence Increases 596 | . 25 . . 30 541 Destroy 0b10 Robot/C 200 | . 20 . . . 180 Destroy 0b10 Robot/NC 20 | . 5 . . . 15 Destroy Leader 32 | . . . . . 32 Successful Hack 23 | . . . . . 23 Disable Machine 90 | . . . . . 90 Destroy Structure 111 | . . . . . 111 Partial Spotted 15 | . . . . . 15 Lose Combat Pursuer 105 | . . . . 30 75 Influence Decreases 385 | . 25 . . 30 330 Time Decay 283 | . 25 . . 30 228 Lost Part 102 | . . . . . 102 Squads Dispatched 6 | . 2 . . . 4 Investigation 1 | . 1 . . . . Extermination . | . . . . . . Reinforcement 5 | . 1 . . . 4 Assault . | . . . . . . Garrison . | . . . . . . Intercept . | . . . . . . Searches Triggered . | . . . . . . Construction Impeded 1 | . . . . . 1 Haulers Reinforced . | . . . . . . Active Scanning Responses . | . . . . . . Cargo Convoy Interrupts . | . . . . . . Stealth | -11 -10 -10 -10 -9 -8 --------- Run | Yrd Mat Min Exi Min Mat Distress Signals . | . . . . . . Communications Jammed . | . . . . . . Distress Signals . | . . . . . . Times Spotted 32 | . 2 6 . 5 19 Peak Tracking Total 5 | . 2 5 . 3 5 Tactical Retreats 6 | . . . . 1 5 Traps | -11 -10 -10 -10 -9 -8 ------- Run | Yrd Mat Min Exi Min Mat Traps Triggered . | . . . . . . Indirectly . | . . . . . . Trap Hack Attempts . | . . . . . . Triggered . | . . . . . . Disarmed . | . . . . . . Reprogrammed . | . . . . . . Reused . | . . . . . . Traps Extracted . | . . . . . . Installed . | . . . . . . Triggered . | . . . . . . Machines | -11 -10 -10 -10 -9 -8 ---------- Run | Yrd Mat Min Exi Min Mat Machines Disabled 6 | . . . . . 6 Max in Single Turn 3 | . . . . . 3 Machines Repaired . | . . . . . . Machines Dismantled . | . . . . . . Machines Sabotaged . | . . . . . . Overloaded Fab Kills . | . . . . . . Hacking | -11 -10 -10 -10 -9 -8 --------- Run | Yrd Mat Min Exi Min Mat Machines Accessed 7 | . 1 . 1 . 5 Terminals 5 | . 1 . . . 4 Fabricators . | . . . . . . Repair Stations . | . . . . . . Recycling Units . | . . . . . . Scanalyzers . | . . . . . . Garrison Access 1 | . . . . . 1 Total Hacks 18 | . 3 . 1 . 14 Successful 9 | . . . 1 . 8 Failed 9 | . 3 . . . 6 Catastrophic 2 | . . . . . 2 Database Lockouts . | . . . . . . Manual 16 | . 3 . 1 . 12 Terminals 15 | . 3 . . . 12 Fabricators . | . . . . . . Repair Stations . | . . . . . . Recycling Units . | . . . . . . Scanalyzers . | . . . . . . Garrison Access 2 | . . . . . 2 Terminal Hacks 4 | . . . 1 . 3 Terminal Index 1 | . . . . . 1 Zone Layout 2 | . . . . . 2 Proto ID Catalog 1 | . . . 1 . . Fabricator Hacks . | . . . . . . Repair Station Hacks . | . . . . . . Recycling Unit Hacks . | . . . . . . Scanalyzer . | . . . . . . Garrison Access Hacks . | . . . . . . Unauthorized Hacks 5 | . . . . . 5 Terminals 5 | . . . . . 5 Assimilate 1 | . . . . . 1 Botnet 4 | . . . . . 4 Fabricators . | . . . . . . Repair Stations . | . . . . . . Recycling Units . | . . . . . . Scanalyzers . | . . . . . . Garrison Access . | . . . . . . Data Cores Recovered 1 | . . . . . 1 Used . | . . . . . . Hacking Detections 6 | . 1 . . . 5 Full Trace Events 1 | . 1 . . . . Feedback Events . | . . . . . . Feedback Blocked . | . . . . . . Robot Schematics Acquired . | . . . . . . Robots Built . | . . . . . . Authchips . | . . . . . . Time . | . . . . . . Total Robot Build Rating . | . . . . . . Part Schematics Acquired . | . . . . . . Parts Built . | . . . . . . Authchips . | . . . . . . Time . | . . . . . . Total Part Build Rating . | . . . . . . Part Studies Acquired . | . . . . . . Parts Repaired . | . . . . . . Time . | . . . . . . Parts Recycled . | . . . . . . Recycled Matter . | . . . . . . Retrieved Matter . | . . . . . . Retrieved Components . | . . . . . . Parts Scanalyzed . | . . . . . . Part Schematics Acquired . | . . . . . . Parts Damaged . | . . . . . . Bothacking | -11 -10 -10 -10 -9 -8 ------------ Run | Yrd Mat Min Exi Min Mat Used RIF Installer . | . . . . . . Robots Hacked . | . . . . . . Non-combat . | . . . . . . Combat . | . . . . . . Robot Hacks Applied . | . . . . . . Relay Couplers Released . | . . . . . . Fabnet Peak Effective % . | . . . . . . Robots Rewired . | . . . . . . Allies Hacked . | . . . . . . Hacks Repelled . | . . . . . . Allies | -11 -10 -10 -10 -9 -8 -------- Run | Yrd Mat Min Exi Min Mat Total Allies . | . . . . . . Largest Group . | . . . . . . Highest-Rated Group . | . . . . . . Highest-Rated Ally . | . . . . . . Total Orders . | . . . . . . Ally Attacks . | . . . . . . Total Damage . | . . . . . . Kills . | . . . . . . Allies Corrupted . | . . . . . . Allies Melted . | . . . . . . Intel | -11 -10 -10 -10 -9 -8 ------- Run | Yrd Mat Min Exi Min Mat Active Infowar (turns) 1265 | . . . 37 415 813 Optics 1135 | . . . . 362 773 Sensors 8 | . . . . . 8 Cloaking 361 | . . . 37 114 210 Robot Analysis Total . | . . . . . . Derelict Logs Recovered . | . . . . . . Drone Launches . | . . . . . . Drone Recoveries . | . . . . . . Exploration | -11 -10 -10 -10 -9 -8 ------------- Run | Yrd Mat Min Exi Min Mat Turns Passed 3162 | 56 243 30 697 501 1635 Spaces Moved 1605 | 31 109 26 425 332 682 Core 626 | 2 . 13 425 162 24 Treads 760 | 29 109 13 . . 609 Legs . | . . . . . . Wheels 219 | . . . . 170 49 Hover . | . . . . . . Flight . | . . . . . . Fastest Speed 50 | 50 160 50 50 50 80 Average Speed 150 | 152 160 114 158 125 157 Slowest Speed 400 | 160 160 200 400 250 240 Overloaded Moves . | . . . . . . Propulsion Burnouts . | . . . . . . Robots Hopped . | . . . . . . Potential Cave-ins . | . . . . . . Cave-ins Triggered 1 | . . . . . 1 Exploration Rate (%) 35 | 4 29 12 78 57 35 Regions Visited 5 Branch Regions 3 Pre-discovered Areas . | . . . . . . Known Exits Taken . | . . . . . . Unknown Exits Taken 5 | 1 1 1 1 1 . Scrap Searched 2 | . . . . 2 . Spaces Dug 27 | . . . . . 27 Terrain Destroyed 125 | . . . . . 125 Melee 11 | . . . . . 11 Projectile 16 | . . . . . 16 AOE 98 | . . . . . 98 Terrain Rammed . | . . . . . . Walls Destroyed . | . . . . . . Machines Disabled . | . . . . . . Actions | -11 -10 -10 -10 -9 -8 --------- Run | Yrd Mat Min Exi Min Mat Total 2172 | 37 140 26 450 418 1101 Wait 363 | . 7 . 12 74 270 Move 1600 | 30 108 25 424 331 682 Hop . | . . . . . . Pick Up 36 | 1 3 . 4 2 26 Fast Attach 10 | 6 . . . 1 3 Attach 25 | . 1 . 4 3 17 Detach 6 | . . . 3 3 . Swap 15 | . . . 1 . 14 Drop 12 | . . 1 1 2 8 Fire 63 | . 21 . . . 42 Melee 32 | . . . . . 32 Ram 2 | . . . . 2 . Kick . | . . . . . . Crush 7 | . . . . . 7 Escape Stasis . | . . . . . . Rewire 1 | . . . 1 . . Trap . | . . . . . . Miscellaneous . | . . . . . . Route ------- -11/Scrapyard -10/Materials -10/Mines -10/Exiles -9/Mines -8/Materials (discovered 1 exit: [*Fac]) History --------- Turn | Location | Event 13 | -11/Scrapyard | Discovered new exit (range 16) 57 | -11/Scrapyard | Entered Materials 252 | -10/Materials | Discovered new exit (range 16) 300 | -10/Materials | Entered Mines 303 | -10/Mines | Assembled infested the area 304 | -10/Mines | Build established: Mutant 320 | -10/Mines | Core integrity fell below 50% 326 | -10/Mines | Core integrity fell below 20% 328 | -10/Mines | Deemed a non-threat by the Exiles lab entrance 328 | -10/Mines | Discovered new exit (range 5) 330 | -10/Mines | Entered Exiles 345 | -10/Exiles | Met 8R-AWN 352 | -10/Exiles | Met EX-HEX 354 | -10/Exiles | Lost 5 parts (1p2n2w) 369 | -10/Exiles | Met EX-BIN 377 | -10/Exiles | Aligned with FarCom system 377 | -10/Exiles | Given EX-Vault access code 389 | -10/Exiles | Opened EX-Vault 392 | -10/Exiles | Found Cloak of Protection 413 | -10/Exiles | Warned to stay clear of 0b10 Research branches 455 | -10/Exiles | Met EX-DEC 512 | -10/Exiles | Visited The Gauntlet 989 | -10/Exiles | Discovered new exit (range 10) 1027 | -10/Exiles | Left Exiles lab with Cloak of Protection 1027 | -10/Exiles | Entered Mines 1525 | -9/Mines | Discovered new exit (range 4) 1528 | -9/Mines | Entered Materials 1528 | -8/Materials | Evolved 4 slots: Power x1, Propulsion x1, Utility x2 2301 | -8/Materials | Crushed by falling debris 2301 | -8/Materials | System corruption reached 10% 2332 | -8/Materials | Lost 4 parts (2p2u) 2884 | -8/Materials | Lost 3 parts (1p2n) 2888 | -8/Materials | Core integrity fell below 50% 3106 | -8/Materials | Discovered new exit (range 13) 3129 | -8/Materials | Core integrity fell below 20% 3155 | -8/Materials | Lost 5 parts (2n1u2w) 3163 | -8/Materials | Destroyed by X-62 Marksman with Pulse Rifle Last Messages --------------- area. 03112_ Penetrated by Slug. 03117_ System corrupted: Energy discharge (-22). 03117_ EMP Blaster destroyed. 03118_ Acquired 12 matter. 03118_ Penetrated by Slug. 03118_ Med. Treads destroyed. 03118_ Adv. Treads blasted off. 03119_ R-06 Scavenger destroyed. 03120_ Penetrated by Slug. 03121_ Imp. Sensor Array destroyed. 03122_ Med. Treads destroyed. 03122_ Knocked back. 03123_ Penetrated by Slug. 03124_ EMP Blaster destroyed. 03127_ Dropped Hcp. Storage Unit. 03136_ YFH21P9J>IK MU6OU,V38ZWCCKF